Cogmind - Beta 11 @@@ ROGUE MODE // 2022.04.09 @ 22:39:13 Player: Red Box Result: Destroyed by D-53 Grenadier with Mini Grenade Launcher Performance ------------- Evolutions (0) 0 Regions Visited (2) 400 Robots Destroyed (21) 105 Value Destroyed (499) 499 Prototype IDs (4) 80 Alien Tech Used (0) 0 Bonus (0) 0 TOTAL SCORE: 1084 Bonus ------- None Cogmind --------- Core Integrity 0/250 Matter 296/300 Energy 99/100 System Corruption 0% Temperature Cool (0) Movement Walking (260) Ox2 Location -10/Mines Parts ------- > --- POWER (1) -------- (None) > --- PROPULSION (2) --- Aluminum Leg Aluminum Leg > --- UTILITY (2) ------ High-capacity Storage Unit Improved Terrain Scanner > --- WEAPON (2) ------- Assault Rifle Assault Rifle > --- INVENTORY (20) --- Ion Engine Light Treads Light Treads Wheel Wheel Wheel Compact Wheel Compact Wheel Heat Sink Improved Heat Sink Cooling System High-capacity Storage Unit High-capacity Matter Pod (92) Targeting Computer Beam Cannon Beam Cannon Rocket Launcher Flail Flail Peak State ------------ > --- POWER ------------ Ion Engine > --- PROPULSION ------- Aluminum Leg Aluminum Leg > --- UTILITY ---------- High-capacity Storage Unit Improved Terrain Scanner > --- WEAPON ----------- Assault Rifle Flail > --- INVENTORY -------- Ion Engine Light Treads Light Treads Wheel Wheel Wheel Compact Wheel Compact Wheel Heat Sink Cooling System High-capacity Storage Unit High-capacity Matter Pod Targeting Computer Medium Laser Assault Rifle Light Assault Rifle Light Assault Rifle Rocket Launcher [Rating: 12] Favorites ----------- Power Ion Engine Engine Ion Engine Propulsion Aluminum Leg Leg Aluminum Leg Wheel Wheel Utility Improved Terrain Scanner Device Improved Terrain Scanner Storage High-capacity Storage Unit Weapon Assault Rifle Ballistic Gun Assault Rifle Impact Weapon Flail Build | -11 -10 -10 ------- Run | Scr Mat Min Slots Evolved . | . . . Power . | . . . Propulsion . | . . . Utility . | . . . Weapon . | . . . Parts Attached 19 | 7 10 2 Power 3 | 1 2 . Engine 3 | 1 2 . Core . | . . . Reactor . | . . . Propulsion 6 | 2 2 2 Treads . | . . . Leg 5 | 2 2 1 Wheel 1 | . . 1 Hover . | . . . Flight . | . . . Utility 3 | 2 1 . Device 1 | 1 . . Storage 2 | 1 1 . Processor . | . . . Hackware . | . . . Protection . | . . . Artifact . | . . . Weapon 7 | 2 5 . Energy Gun . | . . . Energy Cannon . | . . . Ballistic Gun 6 | 2 4 . Ballistic Cannon . | . . . Launcher . | . . . Special Weapon . | . . . Impact Weapon 1 | . 1 . Slashing Weapon . | . . . Piercing Weapon . | . . . Special Melee Weapon . | . . . Unidentified Prototypes . | . . . Parts Lost 2 | . . 2 Power 1 | . . 1 Propulsion 1 | . . 1 Utility . | . . . Weapon . | . . . Highest Loss Streak 1 | . . 1 To Critical Strikes . | . . . Average Slot Usage (%) 99 | . 99 99 Engine 14 | . 14 14 Leg 27 | . 28 26 Device 14 | . 14 14 Storage 14 | . 14 14 Ballistic Gun 27 | . 27 28 Naked Turns . | . . . Heaviest Build 50 | 12 50 50 Greatest Support 20 | 20 20 20 Greatest Overweight (x) 4 | 1 2 4 Average Overweight (x) 1 | . 1 2 Largest Inventory Capacity 20 | 8 20 20 Average Capacity 18 | 7 18 20 Most Carried 19 | 8 19 19 Average Carried 16 | 4 15 18 Final Capacity 20 | 8 20 20 Final Carried 19 | 8 18 19 Class Distribution -------------------- 72% | Mutant 27% | Scavenger-Mutant Dominant Class ---------------- Mutant | -10/Materials Scavenger-Mutant | -10/Mines Resources | -11 -10 -10 ----------- Run | Scr Mat Min Matter Collected 874 | 298 489 87 Remotely . | . . . Salvage Created 768 | 121 560 87 Parts 42 | 4 34 4 Haulers Intercepted 2 | . 2 . Recyclers Shooed . | . . . Parts Field Recycled . | . . . Retrieved Matter . | . . . Parts Self-Destructed . | . . . Prevented . | . . . Kills | -11 -10 -10 ------- Run | Scr Mat Min Combat Hostiles Destroyed 13 | . 11 2 Melee 2 | . 2 . Guns 11 | . 9 2 Classes Destroyed 7 | 2 5 . Worker 1 | . 1 . Tunneler 1 | 1 . . Hauler 2 | . 2 . Recycler 1 | 1 . . Watcher 3 | . 3 . Swarmer 2 | . 2 . Grunt 11 | . 9 2 Best Kill Streak 2 | 2 2 1 Combat Bots Only 2 | . 2 1 Max Kills in Single Turn 1 | 1 1 1 Gunslinging . | . . . Exploded . | . . . Melee 1 | . 1 . Uniques/NPCs Destroyed . | . . . Combat | -11 -10 -10 -------- Run | Scr Mat Min Damage Taken 925 | . 524 401 Core 250 | . 91 159 Absorbed by Shields . | . . . Regen/Repaired (Parts) 82 | . 82 . Core Remaining (%) 100 | 100 . . Volleys Fired 94 | 7 75 12 Largest 2 | 2 2 2 Hottest 40 | 40 40 40 Shots Fired 172 | 14 134 24 Gun 172 | 14 134 24 Cannon . | . . . Launcher . | . . . Special . | . . . Kinetic 172 | 14 134 24 Thermal . | . . . Explosive . | . . . Electromagnetic . | . . . Robot Hit Streak 9 | 3 8 9 Robot Miss Streak 7 | 1 7 2 Penetration Max . | . . . Secondary Targets 1 | . 1 . Max Gunslinging Chain 1 | . 1 . Shots Hit Robots 102 | 9 75 18 Core Hits 38 | 4 29 5 Critical Kills 1 | . 1 . Critical Parts Destroyed 1 | . 1 . Critical Strikes 2 | . 2 . Destroy 1 | . 1 . Smash 1 | . 1 . Melee Attacks 9 | . 9 . Impact 9 | . 9 . Slashing . | . . . Piercing . | . . . Sneak Attacks 1 | . 1 . Combat Hostiles . | . . . Follow-up Attacks . | . . . Damage Inflicted 1450 | 84 1135 231 Guns 1142 | 84 827 231 Cannons . | . . . Explosions . | . . . Melee 308 | . 308 . Ramming . | . . . Kinetic 1142 | 84 827 231 Thermal . | . . . Explosive . | . . . Electromagnetic . | . . . Impact 308 | . 308 . Slashing . | . . . Piercing . | . . . Highest Corruption . | . . . Average Corruption . | . . . Corruption Purged . | . . . Corruption Blocked . | . . . Overload Shots . | . . . Overflow Damage 60 | . 60 . Projectiles . | . . . Explosions . | . . . Melee 60 | . 60 . Knockbacks 2 | . 2 . Impact 2 | . 2 . Kinetic . | . . . Secondary . | . . . Self-Inflicted Damage . | . . . Shots . | . . . Rammed . | . . . Targets Rammed . | . . . Kicked . | . . . Crushed . | . . . Highest Temperature 36 | . 36 2 Average Temperature 9 | . 12 2 Received Heat Transfer 414 | . 291 123 Siege Activations . | . . . Robots Corrupted . | . . . Combat Hostiles . | . . . Parts Fried . | . . . Impact Corruptions 3 | . 3 . Robots Melted . | . . . Combat Hostiles . | . . . Parts Melted . | . . . Heat Transferred . | . . . Parts Sabotaged . | . . . Parts Stolen . | . . . Parts Stripped . | . . . Power Chain Reactions . | . . . Missiles Intercepted . | . . . Alert | -11 -10 -10 ------- Run | Scr Mat Min Peak Influence 113 | 10 113 63 Initial 28 | . 6 28 Average 34 | 3 37 26 Maximum Alert Level . | . . . Low Security (%) 100 | 100 100 100 Level 1 . | . . . Level 2 . | . . . Level 3 . | . . . Level 4 . | . . . Level 5 . | . . . High Security . | . . . Max Security . | . . . Squads Dispatched 4 | . 4 . Investigation 1 | . 1 . Extermination . | . . . Reinforcement 3 | . 3 . Assault . | . . . Garrison . | . . . Intercept . | . . . Searches Triggered . | . . . Construction Impeded . | . . . Haulers Reinforced . | . . . Active Scanning Responses . | . . . Cargo Convoy Interrupts . | . . . Stealth | -11 -10 -10 --------- Run | Scr Mat Min Distress Signals . | . . . Communications Jammed . | . . . Distress Signals . | . . . Times Spotted 36 | . 27 9 Peak Tracking Total 10 | . 3 10 Tactical Retreats 1 | . . 1 Traps | -11 -10 -10 ------- Run | Scr Mat Min Traps Triggered 1 | . 1 . Indirectly . | . . . Trap Hack Attempts . | . . . Triggered . | . . . Disarmed . | . . . Reprogrammed . | . . . Reused . | . . . Traps Extracted . | . . . Installed . | . . . Triggered . | . . . Machines | -11 -10 -10 ---------- Run | Scr Mat Min Machines Disabled . | . . . Max in Single Turn . | . . . Machines Sabotaged . | . . . Garrisons Compromised . | . . . Overloaded Fab Kills . | . . . Hacking | -11 -10 -10 --------- Run | Scr Mat Min Machines Accessed 8 | . 8 . Terminals 5 | . 5 . Fabricators . | . . . Repair Stations 1 | . 1 . Recycling Units 2 | . 2 . Scanalyzers . | . . . Garrison Access . | . . . Total Hacks 34 | . 34 . Successful 22 | . 22 . Failed 12 | . 12 . Catastrophic 2 | . 2 . Database Lockouts . | . . . Manual 20 | . 20 . Terminals 25 | . 25 . Fabricators . | . . . Repair Stations 2 | . 2 . Recycling Units 7 | . 7 . Scanalyzers . | . . . Garrison Access . | . . . Terminal Hacks 8 | . 8 . Record 1 | . 1 . Robot Analysis 3 | . 3 . Prototype ID Bank 2 | . 2 . Unreport Threat 1 | . 1 . Recall Reinforcements 1 | . 1 . Fabricator Hacks . | . . . Repair Station Hacks 2 | . 2 . Scan Component 1 | . 1 . Repair 1 | . 1 . Recycling Unit Hacks 2 | . 2 . Retrieve Components 2 | . 2 . Scanalyzer . | . . . Garrison Access Hacks . | . . . Unauthorized Hacks 10 | . 10 . Terminals 6 | . 6 . Track 2 | . 2 . Botnet 2 | . 2 . Disrupt 1 | . 1 . Operators 1 | . 1 . Fabricators . | . . . Repair Stations . | . . . Recycling Units 4 | . 4 . Monitor 1 | . 1 . Reject 2 | . 2 . Recyclers 1 | . 1 . Scanalyzers . | . . . Garrison Access . | . . . Data Cores Recovered . | . . . Used . | . . . Hacking Detections 7 | . 7 . Full Trace Events . | . . . Feedback Events . | . . . Feedback Blocked . | . . . Robot Schematics Acquired . | . . . Robots Built . | . . . Authchips . | . . . Time . | . . . Total Robot Build Rating . | . . . Part Schematics Acquired . | . . . Parts Built . | . . . Authchips . | . . . Time . | . . . Total Part Build Rating . | . . . Parts Repaired 1 | . 1 . Time 26 | . 26 . Parts Recycled . | . . . Recycled Matter . | . . . Retrieved Matter . | . . . Retrieved Components 2 | . 2 . Parts Scanalyzed . | . . . Part Schematics Acquired . | . . . Parts Damaged . | . . . Bothacking | -11 -10 -10 ------------ Run | Scr Mat Min Used RIF Installer . | . . . Robots Hacked . | . . . Non-combat . | . . . Combat . | . . . Robot Hacks Applied . | . . . Relay Couplers Released . | . . . Fabnet Peak Effective % . | . . . Robots Rewired . | . . . Allies Hacked . | . . . Hacks Repelled . | . . . Allies | -11 -10 -10 -------- Run | Scr Mat Min Total Allies . | . . . Largest Group . | . . . Highest-Rated Group . | . . . Highest-Rated Ally . | . . . Total Orders . | . . . Ally Attacks . | . . . Total Damage . | . . . Kills . | . . . Allies Corrupted . | . . . Allies Melted . | . . . Intel | -11 -10 -10 ------- Run | Scr Mat Min Robot Analysis Total 3 | . 3 . Derelict Logs Recovered . | . . . Drone Launches . | . . . Drone Recoveries . | . . . Exploration | -11 -10 -10 ------------- Run | Scr Mat Min Turns Passed 3306 | 82 2647 577 Spaces Moved 1146 | 41 898 207 Core 11 | 11 . . Treads . | . . . Legs 1108 | 30 898 180 Wheels 27 | . . 27 Hover . | . . . Flight . | . . . Fastest Speed 50 | 50 120 140 Average Speed 232 | 107 235 244 Slowest Speed 260 | 120 260 260 Overloaded Moves . | . . . Propulsion Burnouts . | . . . Robots Hopped . | . . . Cave-ins Triggered . | . . . Exploration Rate (%) 50 | 4 93 55 Regions Visited 2 Branch Regions 1 Pre-discovered Areas . | . . . Known Exits Taken . | . . . Unknown Exits Taken 2 | 1 1 . Scrap Searched . | . . . Spaces Dug 1 | . 1 . Terrain Destroyed 1 | . 1 . Melee 1 | . 1 . Projectile . | . . . AOE . | . . . Terrain Rammed . | . . . Walls Destroyed . | . . . Machines Disabled . | . . . Actions | -11 -10 -10 --------- Run | Scr Mat Min Total 1613 | 63 1295 255 Wait 305 | . 273 32 Move 1144 | 40 897 207 Hop . | . . . Pick Up 29 | 9 18 2 Fast Attach 7 | 6 1 . Attach 2 | 1 . 1 Detach . | . . . Swap 10 | . 9 1 Drop 13 | . 13 . Fire 94 | 7 75 12 Melee 9 | . 9 . Ram . | . . . Kick . | . . . Crush . | . . . Escape Stasis . | . . . Rewire . | . . . Trap . | . . . Miscellaneous . | . . . Route ------- -11/Scrapyard -10/Materials (discovered 3 exits: [*Mat x2] / [*Min]) -10/Mines (discovered 1 exit: [*Mat]) History --------- Turn | Location | Event 12 | -11/Scrapyard | Discovered new exit (range 16) 83 | -11/Scrapyard | Entered Materials 305 | -10/Materials | Build established: Mutant 332 | -10/Materials | Discovered new exit (range 10) 1000 | -10/Materials | Discovered new exit (range 11) 1334 | -10/Materials | Discovered new exit (range 16) 2510 | -10/Materials | Repaired Assault Rifle 2705 | -10/Materials | Build established: Scavenger-Mutant 2730 | -10/Materials | Entered Mines 2733 | -10/Mines | Discovered new exit (range 10) 3098 | -10/Mines | Core integrity fell below 50% 3279 | -10/Mines | Assembled infested the area 3284 | -10/Mines | Assisted by a Guerilla fighting off Assembled 3305 | -10/Mines | Core integrity fell below 20% 3307 | -10/Mines | Destroyed by D-53 Grenadier with Mini Grenade Launcher Last Messages --------------- 03100_ G-47 Trooper destroyed. 03107_ Acquired Imp. Heat Sink. 03108_ Acquired 56 matter. 03149_ G-34 Mercenary destroyed. 03158_ Acquired Aluminum Leg. 03161_ Acquired 31 matter. 03166_ R-06 Scavenger collects Ion Engine. 03170_ R-06 Scavenger collects Sml. Laser. 03245_ K-01 Serf cleans the Matter Pump. 03279_ ALERT: Infestation in the mines, dispatching Demolisher response squad. 03284_ A derelict emerges from the shadows: "You need to get out of here! I've been tracking a group of Assembled to figure out where they're coming from, and they're closing on this area, come on!" 03302_ C-30 ARC bursts open, deploying its payload. 03302_ D-53 Grenadier unfolds itself. 03304_ The unstable cave ceiling collapses. 03304_ Ion Engine destroyed. 03306_ The unstable cave ceiling collapses. 03306_ as-35581 destroyed. Map ----- +----------------------------------------------------+ | ??# ##??####????## #??####?????????? | | ??## ##???#####???# #?#?????????????? | | ?##### ##?### ##??# #?????????????#?? | | ?????## #### ##?# #???????????????? | | ???#?## ## #### #???????????????? | | ??#### """ #???????????????? | | ?## """ #???????????????? | | ?# """ ##########?????#???????? | | ?# ##?##??????????????????? | | ## ### ##?????????#???????????? | | # ######?#### #????#???#?????#??????? | | # ##???###?#?## ##????????#???????????? | | # #??????##??### ##?#?????????????????? | | # ##??#?#???????## ###????????##???????? | | ###????#?#?####?# #########? ????????? | | #??#??????#?#??## % ??????? | | #?############?### ??????? | | #### ###### a ########### ??????? | | #?# # #??#????????????????? | | ### ###### # aa #####???????????????? | | ##?# #??#?# # #???????????????? | | #??# #????# k# # #???????????????? | | ##??# #?#??# #?????????????????? | | ###??# ##???# #?????????????????? | | ###???##### #####????# #?#???????????????? | | ???#??????# #?#????#?# @dd #?#???????????????? | | ?###?????## #???#?#??## ##?????????????????? | | ## #####?# #???????#?# #?? ???????????????? | | # ### ##????????### t ##?????????????????? | | # ####????#?# #?????????????????? | | # < ##?????##? h ###?????????????????? | | ## #???????# #???????????????????? | | ?# #??????### #?? ????????????????? | | ?## ##???????### ???????????????????? | | ??# ###??????#??#?# ???????????????????? | | ??# ###?#???????????? ??????????????????? | | #?# ##???????????????? ??????????????????? | | ??## ##??#??#??##?#????? #?????????????????? | | ???## #???????##???#????? ##?????????????????? | | ????# #???#??????? ?????? #???????????????????? | | ????## ##????????????????????????????????????????? | | ????####???????#?#???????????????????????????????? | | ?????##????#?????#? ?????????????????????????????? | | ??#??????????????????????????????????????????????? | | ????????????##???????????????????????????????????? | | ?????#???#???????????????????????????????????????? | | ?????????????????????????????????????????????????? | | ?????#????????#??????????????????????????????????? | | ??????#??????????????????????????????????????????? | | ????????#????????????????????????????????????????? | +----------------------------------------------------+ Best States ------------- Heat Dissipation 25 Energy Generation 10 Energy Capacity 250 Matter Stores 300 Matter Capacity 300 Sight Range 16 Terrain Scan Range 16 Terrain Scan Density 10 Evasion (%) 55 Item Schematics ----------------- None Robot Schematics ------------------ None Fabricated ------------ Nothing Alien Tech Used ----------------- None Achievements -------------- None Challenges ------------ None Game ------ Seed TargetingPointCutter Manual? 0 Play Time 00:14:22 Cumulative 265.5 hours Start 2022.04.09 @ 22:21:17 End 2022.04.09 @ 22:39:13 Sessions 1 Manual Loads 0 Difficulty Rogue Special Mode None Game No. 226 Rogue 226 Adventurer 0 Explorer 0 Win Type - Total 0 Types 0/0/0/0/0/0/0/0/0 Lore% 51 Gallery% 58 Achievement% 42 Wizard Run 0 Options --------- ASCII 0 Keyboard 0 Movement Mouse Keybinds 0 Fullscreen 1 Font 16/SmallcapsGlow Map View 75x55 Tactical HUD 1 Map Filters NONE Filters NONE Steam 1 RUN: 018345c7-589f-4241-9789-f990ac90ec56